[Event "Early-Titled-Tuesday-Blitz-February-20-2024"]
[Site "Chess.com"]
[Date "2024.02.20"]
[Round "7"]
[White "ATM622"]
[Black "ZuraTqebuchava"]
[Result "0-1"]
[WhiteElo "2481"]
[BlackElo "2285"]
[TimeControl "180+1"]
[EndTime "9:21:10 PST"]
[Termination "ZuraTqebuchava won by resignation"]

1. d4 {[%clk 0:02:57.6]} 1... g6 {[%clk 0:02:59.6]} 2. c4 {[%clk 0:02:57.7]}
2... Bg7 {[%clk 0:02:59]} 3. Nf3 {[%clk 0:02:58.1]} 3... d6 {[%clk 0:02:59.2]}
4. g3 {[%clk 0:02:58.4]} 4... Bg4 {[%clk 0:02:56.2]} 5. Bg2 {[%clk 0:02:56.4]}
5... c6 {[%clk 0:02:53.9]} 6. O-O {[%clk 0:02:56.2]} 6... Nf6 {[%clk 0:02:52.1]}
7. Nc3 {[%clk 0:02:55.3]} 7... O-O {[%clk 0:02:51.3]} 8. e4 {[%clk 0:02:54.9]}
8... Bxf3 {[%clk 0:02:48.9]} 9. Bxf3 {[%clk 0:02:53.9]} 9... e5 {[%clk
0:02:49.2]} 10. dxe5 {[%clk 0:02:52.2]} 10... dxe5 {[%clk 0:02:50.1]} 11. Be3
{[%clk 0:02:51.9]} 11... Qxd1 {[%clk 0:02:42.9]} 12. Rfxd1 {[%clk 0:02:50.2]}
12... Nbd7 {[%clk 0:02:43.8]} 13. b4 {[%clk 0:02:46.5]} 13... Rfe8 {[%clk
0:02:32.8]} 14. b5 {[%clk 0:02:45.7]} 14... Bf8 {[%clk 0:02:31.3]} 15. Rab1
{[%clk 0:02:41.5]} 15... Nc5 {[%clk 0:02:24]} 16. Bg5 {[%clk 0:02:30]} 16... Kg7
{[%clk 0:02:20.5]} 17. bxc6 {[%clk 0:02:27.5]} 17... bxc6 {[%clk 0:02:18.8]} 18.
Be3 {[%clk 0:02:23.8]} 18... Rab8 {[%clk 0:02:16.2]} 19. Kg2 {[%clk 0:02:19.7]}
19... Ne6 {[%clk 0:02:05]} 20. Bxa7 {[%clk 0:02:15.3]} 20... Ra8 {[%clk
0:02:01.6]} 21. Be3 {[%clk 0:02:10.9]} 21... Ra3 {[%clk 0:01:58.3]} 22. Rb3
{[%clk 0:02:07.7]} 22... Ra5 {[%clk 0:01:55.5]} 23. Bb6 {[%clk 0:02:02.1]} 23...
Ra6 {[%clk 0:01:53]} 24. Be3 {[%clk 0:01:54.8]} 24... Bc5 {[%clk 0:01:48.9]} 25.
Bxc5 {[%clk 0:01:50.4]} 25... Nxc5 {[%clk 0:01:48.3]} 26. Rb2 {[%clk 0:01:50.6]}
26... Ra3 {[%clk 0:01:46.8]} 27. Nb1 {[%clk 0:01:49.2]} 27... Ra4 {[%clk
0:01:44.1]} 28. Rd6 {[%clk 0:01:42.5]} 28... Rc8 {[%clk 0:01:34.1]} 29. Rb6
{[%clk 0:01:41.4]} 29... Rxa2 {[%clk 0:01:28.8]} 30. Nc3 {[%clk 0:01:29.6]}
30... Rc2 {[%clk 0:01:23.2]} 31. Rbxc6 {[%clk 0:00:51.1]} 31... Rxc6 {[%clk
0:01:19.2]} 32. Rxc6 {[%clk 0:00:50.9]} 32... Nd3 {[%clk 0:00:59.1]} 33. Be2
{[%clk 0:00:02.2]} 33... Rxc3 {[%clk 0:00:57.3]} 34. Rd6 {[%clk 0:00:02.6]}
34... Nc5 {[%clk 0:00:53.5]} 35. Rc6 {[%clk 0:00:02.4]} 35... Ncxe4 {[%clk
0:00:51.1]} 36. Bf3 {[%clk 0:00:02.5]} 36... Nd2 {[%clk 0:00:49.6]} 37. Be2
{[%clk 0:00:02.9]} 37... Nb3 {[%clk 0:00:45.9]} 38. Rb6 {[%clk 0:00:02.7]} 38...
Nd4 {[%clk 0:00:45.4]} 39. Bd1 {[%clk 0:00:02.4]} 39... Rxc4 {[%clk 0:00:43.4]}
40. Rb7 {[%clk 0:00:02.6]} 40... Rc1 {[%clk 0:00:38]} 41. Ba4 {[%clk 0:00:02.6]}
41... h5 {[%clk 0:00:34.6]} 42. h4 {[%clk 0:00:02.6]} 42... Ra1 {[%clk 0:00:31]}
43. Bc2 {[%clk 0:00:01.1]} 43... Nxc2 {[%clk 0:00:30.1]} 44. Re7 {[%clk
0:00:01.4]} 44... Ra5 {[%clk 0:00:28.6]} 45. Kf3 {[%clk 0:00:01.2]} 45... Nd4+
{[%clk 0:00:28.3]} 46. Kg2 {[%clk 0:00:01.5]} 46... Ra2 {[%clk 0:00:27.5]} 47.
Rxe5 {[%clk 0:00:01.7]} 47... Ne6 {[%clk 0:00:25.4]} 48. Rb5 {[%clk 0:00:01.5]}
48... Ng4 {[%clk 0:00:24.3]} 49. Rb3 {[%clk 0:00:01.3]} 49... Rxf2+ {[%clk
0:00:23.6]} 50. Kg1 {[%clk 0:00:02]} 50... Rc2 {[%clk 0:00:22.9]} 51. Ra3 {[%clk
0:00:02.4]} 51... Nd4 {[%clk 0:00:22.2]} 52. Rd3 {[%clk 0:00:02.3]} 52... Rd2
{[%clk 0:00:21.2]} 53. Rxd2 {[%clk 0:00:01.9]} 53... Nf3+ {[%clk 0:00:21.1]} 54.
Kg2 {[%clk 0:00:02.8]} 54... Nxd2 {[%clk 0:00:21.7]} 55. Kh3 {[%clk 0:00:03.7]}
55... Nc4 {[%clk 0:00:22.3]} 56. Kg2 {[%clk 0:00:04.3]} 56... Nce5 {[%clk
0:00:22.3]} 57. Kh3 {[%clk 0:00:04.5]} 57... Kf6 {[%clk 0:00:22.3]} 58. Kg2
{[%clk 0:00:05.4]} 58... Nd7 {[%clk 0:00:22.3]} 59. Kh3 {[%clk 0:00:06.3]} 59...
Kf5 {[%clk 0:00:22.4]} 60. Kg2 {[%clk 0:00:07.2]} 60... Ke4 {[%clk 0:00:22.5]}
61. Kh3 {[%clk 0:00:08.1]} 61... Ke3 {[%clk 0:00:22.5]} 62. Kg2 {[%clk
0:00:08.4]} 62... Nge5 {[%clk 0:00:21.8]} 63. Kh3 {[%clk 0:00:07.6]} 63... f6
{[%clk 0:00:21.8]} 64. Kg2 {[%clk 0:00:07.8]} 64... Nc5 {[%clk 0:00:21.8]} 65.
Kh3 {[%clk 0:00:08.2]} 65... Ne4 {[%clk 0:00:21.8]} 66. Kg2 {[%clk 0:00:08.5]}
66... Nxg3 {[%clk 0:00:22.2]} 67. Kxg3 {[%clk 0:00:08.5]} 67... Nf3 {[%clk
0:00:21.3]} 68. Kh3 {[%clk 0:00:08.5]} 68... Nxh4 {[%clk 0:00:21.3]} 69. Kxh4
{[%clk 0:00:09.4]} 69... Kf4 {[%clk 0:00:21.5]} 70. Kh3 {[%clk 0:00:10.3]} 70...
g5 {[%clk 0:00:21.7]} 71. Kh2 {[%clk 0:00:10.5]} 71... g4 {[%clk 0:00:21.7]} 72.
Kg2 {[%clk 0:00:11.4]} 72... g3 {[%clk 0:00:21.8]} 73. Kh3 {[%clk 0:00:11.8]}
73... Kf3 {[%clk 0:00:21.8]} 74. Kh4 {[%clk 0:00:12.1]} 74... g2 {[%clk
0:00:22.1]} 75. Kxh5 {[%clk 0:00:12.2]} 75... g1=Q {[%clk 0:00:22.4]} 76. Kh6
{[%clk 0:00:13.1]} 76... Qg8 {[%clk 0:00:21.4]} 77. Kh5 {[%clk 0:00:13.4]} 77...
Kf4 {[%clk 0:00:21.6]} 78. Kh6 {[%clk 0:00:13.3]} 78... Kf5 {[%clk 0:00:20.2]}
0-1

[Event "Early-Titled-Tuesday-Blitz-February-20-2024"]
[Site "Chess.com"]
[Date "2024.02.20"]
[Round "7"]
[White "mortngabriel"]
[Black "AsaHoffmann"]
[Result "0-1"]
[WhiteElo "2523"]
[BlackElo "2372"]
[TimeControl "180+1"]
[EndTime "9:21:23 PST"]
[Termination "AsaHoffmann won by resignation"]

1. e4 {[%clk 0:03:00.9]} 1... d6 {[%clk 0:02:50.7]} 2. d4 {[%clk 0:02:59.9]}
2... Nf6 {[%clk 0:02:47.2]} 3. Bd3 {[%clk 0:02:55.4]} 3... e5 {[%clk 0:02:46.6]}
4. dxe5 {[%clk 0:02:51]} 4... dxe5 {[%clk 0:02:46.1]} 5. h3 {[%clk 0:02:46.5]}
5... Nc6 {[%clk 0:02:45.7]} 6. Nf3 {[%clk 0:02:46.6]} 6... Bc5 {[%clk
0:02:45.2]} 7. O-O {[%clk 0:02:45.4]} 7... O-O {[%clk 0:02:44.1]} 8. Bc4 {[%clk
0:02:45.8]} 8... Qe7 {[%clk 0:02:42.7]} 9. Re1 {[%clk 0:02:29.6]} 9... Be6
{[%clk 0:02:41.1]} 10. Bxe6 {[%clk 0:02:28.4]} 10... Qxe6 {[%clk 0:02:40.6]} 11.
c3 {[%clk 0:02:24.3]} 11... h6 {[%clk 0:02:40.1]} 12. Qc2 {[%clk 0:02:22.7]}
12... Rfd8 {[%clk 0:02:39.3]} 13. Nbd2 {[%clk 0:02:17.3]} 13... Ne7 {[%clk
0:02:38.3]} 14. Qb3 {[%clk 0:02:14.3]} 14... Qxb3 {[%clk 0:02:25.9]} 15. Nxb3
{[%clk 0:02:07.6]} 15... Bd6 {[%clk 0:02:25.5]} 16. Nh2 {[%clk 0:01:45.6]} 16...
Ng6 {[%clk 0:02:24.8]} 17. g3 {[%clk 0:01:42.8]} 17... a5 {[%clk 0:02:23.4]} 18.
a4 {[%clk 0:01:41.5]} 18... Ra6 {[%clk 0:02:21.4]} 19. Ng4 {[%clk 0:01:36.4]}
19... Nxg4 {[%clk 0:02:14.4]} 20. hxg4 {[%clk 0:01:37.3]} 20... Be7 {[%clk
0:02:06.7]} 21. Be3 {[%clk 0:01:34.1]} 21... Raa8 {[%clk 0:02:04.6]} 22. Red1
{[%clk 0:01:25.6]} 22... b6 {[%clk 0:02:04.4]} 23. Kf1 {[%clk 0:01:25.2]} 23...
Nf8 {[%clk 0:02:04.1]} 24. Ke2 {[%clk 0:01:23.3]} 24... Ne6 {[%clk 0:02:03.9]}
25. f3 {[%clk 0:01:13.5]} 25... Bg5 {[%clk 0:01:58.9]} 26. Bf2 {[%clk 0:01:09]}
26... Kf8 {[%clk 0:01:57.7]} 27. Rxd8+ {[%clk 0:01:07.4]} 27... Rxd8 {[%clk
0:01:57]} 28. Rd1 {[%clk 0:01:08.3]} 28... Rxd1 {[%clk 0:01:54.5]} 29. Kxd1
{[%clk 0:01:09.2]} 29... Ke8 {[%clk 0:01:53.7]} 30. Kc2 {[%clk 0:01:05.7]} 30...
Kd7 {[%clk 0:01:53.5]} 31. Kd3 {[%clk 0:01:01.9]} 31... Kc6 {[%clk 0:01:45]} 32.
Na1 {[%clk 0:01:00.3]} 32... Be7 {[%clk 0:01:41.4]} 33. Nc2 {[%clk 0:00:55.9]}
33... Bc5 {[%clk 0:01:40.9]} 34. Be1 {[%clk 0:00:56.3]} 34... Kd7 {[%clk
0:01:38.9]} 35. b4 {[%clk 0:00:54.1]} 35... Bd6 {[%clk 0:01:36.7]} 36. Kc4
{[%clk 0:00:49]} 36... Kc6 {[%clk 0:01:34.1]} 37. Bf2 {[%clk 0:00:35]} 37... Ng5
{[%clk 0:01:30.5]} 38. Ne1 {[%clk 0:00:31.7]} 38... Be7 {[%clk 0:01:19.3]} 39.
Be3 {[%clk 0:00:31.3]} 39... Ne6 {[%clk 0:01:18.6]} 40. Nd3 {[%clk 0:00:29.3]}
40... f6 {[%clk 0:01:17.7]} 41. Nc1 {[%clk 0:00:17.7]} 41... Nd8 {[%clk
0:01:17.5]} 42. Nb3 {[%clk 0:00:15.4]} 42... axb4 {[%clk 0:01:14.5]} 43. cxb4
{[%clk 0:00:15.5]} 43... Nf7 {[%clk 0:01:13.6]} 44. Nc1 {[%clk 0:00:10.6]} 44...
Nd6+ {[%clk 0:01:12.6]} 45. Kb3 {[%clk 0:00:09.7]} 45... Kb7 {[%clk 0:01:08.3]}
46. Ne2 {[%clk 0:00:10.3]} 46... c6 {[%clk 0:01:07.5]} 47. Nc3 {[%clk
0:00:10.9]} 47... Ne8 {[%clk 0:01:05.9]} 48. Nd1 {[%clk 0:00:09.4]} 48... Nc7
{[%clk 0:01:05.8]} 49. Nf2 {[%clk 0:00:08.8]} 49... Ne6 {[%clk 0:01:05.7]} 50.
Nd3 {[%clk 0:00:08.1]} 50... Bd8 {[%clk 0:01:05.2]} 51. Kc4 {[%clk 0:00:07.9]}
51... Kc7 {[%clk 0:01:03]} 52. a5 {[%clk 0:00:08.1]} 52... bxa5 {[%clk
0:01:02.6]} 53. bxa5 {[%clk 0:00:09]} 53... Kb7 {[%clk 0:01:02.1]} 54. Nc5+
{[%clk 0:00:08.5]} 54... Nxc5 {[%clk 0:01:01.1]} 55. Bxc5 {[%clk 0:00:09]} 55...
Bxa5 {[%clk 0:01:00.7]} 56. Bf8 {[%clk 0:00:09.7]} 56... Be1 {[%clk 0:00:54.9]}
57. Bxg7 {[%clk 0:00:10]} 57... Bxg3 {[%clk 0:00:54.6]} 58. Bxf6 {[%clk
0:00:10.1]} 58... Bf4 {[%clk 0:00:54.1]} 59. Kc5 {[%clk 0:00:09.6]} 59... Kc7
{[%clk 0:00:51.7]} 60. Bg7 {[%clk 0:00:07.9]} 60... Be3+ {[%clk 0:00:50.8]} 61.
Kc4 {[%clk 0:00:08]} 61... Bf4 {[%clk 0:00:50.8]} 62. Bf8 {[%clk 0:00:07]} 62...
Kd7 {[%clk 0:00:50.7]} 63. Bb4 {[%clk 0:00:06.6]} 63... Bg5 {[%clk 0:00:44.2]}
64. Bc3 {[%clk 0:00:05.5]} 64... Bf4 {[%clk 0:00:43.8]} 65. Be1 {[%clk
0:00:06.2]} 65... Bh2 {[%clk 0:00:42.8]} 66. Bh4 {[%clk 0:00:06.1]} 66... Bf4
{[%clk 0:00:42.3]} 67. Bf6 {[%clk 0:00:06]} 67... Bg3 {[%clk 0:00:40.8]} 68. Bg7
{[%clk 0:00:03.6]} 68... Bf4 {[%clk 0:00:40.2]} 69. Bf8 {[%clk 0:00:04.1]} 69...
Kc7 {[%clk 0:00:39.4]} 70. Bb4 {[%clk 0:00:04]} 70... Kb6 {[%clk 0:00:38.6]} 71.
Be1 {[%clk 0:00:04]} 71... Kc7 {[%clk 0:00:37.9]} 72. Bf2 {[%clk 0:00:04.5]}
72... Kd7 {[%clk 0:00:37.7]} 73. Kc5 {[%clk 0:00:05]} 73... Bg5 {[%clk
0:00:36.1]} 74. Bg3 {[%clk 0:00:04.1]} 74... Be7+ {[%clk 0:00:35.2]} 75. Kc4
{[%clk 0:00:04.4]} 75... Bd6 {[%clk 0:00:35.1]} 76. Kd3 {[%clk 0:00:03.8]} 76...
Ke6 {[%clk 0:00:35]} 77. Ke3 {[%clk 0:00:03.9]} 77... Kf6 {[%clk 0:00:35.1]} 78.
Kd3 {[%clk 0:00:04.2]} 78... Kg6 {[%clk 0:00:35.2]} 79. Bh4 {[%clk 0:00:04.2]}
79... h5 {[%clk 0:00:34.9]} 80. Kc4 {[%clk 0:00:04.6]} 80... hxg4 {[%clk
0:00:32.2]} 81. fxg4 {[%clk 0:00:05.5]} 81... Ba3 {[%clk 0:00:30.4]} 82. Kd3
{[%clk 0:00:05.9]} 82... Bb2 {[%clk 0:00:29.2]} 83. Ke2 {[%clk 0:00:06.5]} 83...
Bc1 {[%clk 0:00:29]} 84. Kf3 {[%clk 0:00:06.9]} 84... c5 {[%clk 0:00:28.3]} 85.
Be1 {[%clk 0:00:06.8]} 85... c4 {[%clk 0:00:26.9]} 86. Bg3 {[%clk 0:00:06.8]}
86... c3 {[%clk 0:00:26.3]} 87. Ke2 {[%clk 0:00:05.4]} 87... Bf4 {[%clk
0:00:25.1]} 88. Bxf4 {[%clk 0:00:03.1]} 88... exf4 {[%clk 0:00:25]} 89. Kd3
{[%clk 0:00:03.8]} 89... f3 {[%clk 0:00:24.3]} 90. Kxc3 {[%clk 0:00:04.3]} 90...
f2 {[%clk 0:00:24.4]} 0-1

[Event "Early-Titled-Tuesday-Blitz-February-20-2024"]
[Site "Chess.com"]
[Date "2024.02.20"]
[Round "7"]
[White "DreamsAreFake"]
[Black "Anton_Demchenko"]
[Result "1/2-1/2"]
[WhiteElo "2770"]
[BlackElo "2910"]
[TimeControl "180+1"]
[EndTime "9:21:46 PST"]
[Termination "Game drawn by stalemate"]

1. Nf3 {[%clk 0:02:58.2]} 1... Nf6 {[%clk 0:02:59.5]} 2. g3 {[%clk 0:02:58.7]}
2... g6 {[%clk 0:02:58.9]} 3. Bg2 {[%clk 0:02:59.4]} 3... Bg7 {[%clk 0:02:59.6]}
4. O-O {[%clk 0:03:00.1]} 4... O-O {[%clk 0:03:00.2]} 5. d4 {[%clk 0:03:00.9]}
5... d6 {[%clk 0:03:00.6]} 6. c3 {[%clk 0:02:59.5]} 6... Nbd7 {[%clk 0:02:59.4]}
7. Nbd2 {[%clk 0:02:58.1]} 7... Re8 {[%clk 0:02:59.3]} 8. e4 {[%clk 0:02:58.3]}
8... e5 {[%clk 0:02:59.9]} 9. Qe2 {[%clk 0:02:58.4]} 9... b6 {[%clk 0:03:00.1]}
10. a4 {[%clk 0:02:54.7]} 10... a6 {[%clk 0:03:00.2]} 11. dxe5 {[%clk
0:02:43.3]} 11... dxe5 {[%clk 0:02:59.8]} 12. Nc4 {[%clk 0:02:41.2]} 12... Bb7
{[%clk 0:02:57.4]} 13. Nfd2 {[%clk 0:02:41.8]} 13... Nc5 {[%clk 0:02:52.2]} 14.
b4 {[%clk 0:02:36.6]} 14... Qd3 {[%clk 0:02:42.5]} 15. Re1 {[%clk 0:02:18.2]}
15... Qxe2 {[%clk 0:02:37.6]} 16. Rxe2 {[%clk 0:02:19.1]} 16... Nd3 {[%clk
0:02:30.8]} 17. Ne3 {[%clk 0:02:10.7]} 17... Rad8 {[%clk 0:02:11.8]} 18. Ba3
{[%clk 0:01:53.1]} 18... Bh6 {[%clk 0:02:11.8]} 19. Ra2 {[%clk 0:01:50.4]} 19...
b5 {[%clk 0:01:51.6]} 20. a5 {[%clk 0:01:39.7]} 20... Rd6 {[%clk 0:01:38.9]} 21.
c4 {[%clk 0:01:29.1]} 21... bxc4 {[%clk 0:00:46.7]} 22. Ndxc4 {[%clk 0:01:24.8]}
22... Rd4 {[%clk 0:00:47.1]} 23. f3 {[%clk 0:01:22]} 23... Bc6 {[%clk
0:00:42.9]} 24. Bb2 {[%clk 0:01:15.7]} 24... Nxb2 {[%clk 0:00:40.8]} 25. Rexb2
{[%clk 0:01:10.1]} 25... Bb5 {[%clk 0:00:39.8]} 26. Bf1 {[%clk 0:01:09.5]} 26...
Red8 {[%clk 0:00:32.5]} 27. Kf2 {[%clk 0:01:08.1]} 27... Bf8 {[%clk 0:00:28.9]}
28. Nxe5 {[%clk 0:01:01.2]} 28... Bxf1 {[%clk 0:00:26.6]} 29. Nxf1 {[%clk
0:00:58.4]} 29... Rxb4 {[%clk 0:00:21.8]} 30. Rc2 {[%clk 0:00:46.9]} 30... Rb5
{[%clk 0:00:20.1]} 31. Nc6 {[%clk 0:00:46.6]} 31... Rd3 {[%clk 0:00:17.2]} 32.
Ke2 {[%clk 0:00:38.7]} 32... Rd6 {[%clk 0:00:17.4]} 33. Rc4 {[%clk 0:00:33.3]}
33... Nd7 {[%clk 0:00:16.2]} 34. Rac2 {[%clk 0:00:33.2]} 34... Rb1 {[%clk
0:00:13.8]} 35. f4 {[%clk 0:00:19.6]} 35... Rdd1 {[%clk 0:00:13.9]} 36. Ne3
{[%clk 0:00:19.3]} 36... Rh1 {[%clk 0:00:13.5]} 37. Kf3 {[%clk 0:00:18.2]} 37...
Rb3 {[%clk 0:00:11.4]} 38. Nd4 {[%clk 0:00:17.3]} 38... Ra3 {[%clk 0:00:10.7]}
39. R2c3 {[%clk 0:00:17.5]} 39... Rxc3 {[%clk 0:00:07.5]} 40. Rxc3 {[%clk
0:00:18.4]} 40... Nc5 {[%clk 0:00:08.3]} 41. Nd5 {[%clk 0:00:16.8]} 41... Rxh2
{[%clk 0:00:08.2]} 42. Nxc7 {[%clk 0:00:16.5]} 42... h5 {[%clk 0:00:08.3]} 43.
Nd5 {[%clk 0:00:13.5]} 43... h4 {[%clk 0:00:08.4]} 44. Kg4 {[%clk 0:00:12.3]}
44... h3 {[%clk 0:00:07.9]} 45. Nf6+ {[%clk 0:00:12]} 45... Kg7 {[%clk
0:00:07.9]} 46. e5 {[%clk 0:00:12.5]} 46... Rh1 {[%clk 0:00:07.6]} 47. Nf3
{[%clk 0:00:12.6]} 47... h2 {[%clk 0:00:05]} 48. Kh3 {[%clk 0:00:12.7]} 48...
Ne6 {[%clk 0:00:03.6]} 49. Nxh2 {[%clk 0:00:12.6]} 49... Bc5 {[%clk 0:00:02.9]}
50. Kg2 {[%clk 0:00:12.3]} 50... Rg1+ {[%clk 0:00:03.5]} 51. Kh3 {[%clk
0:00:12.4]} 51... Rh1 {[%clk 0:00:03.9]} 52. Kg2 {[%clk 0:00:11.7]} 52... Rg1+
{[%clk 0:00:04.2]} 53. Kf3 {[%clk 0:00:12.2]} 53... Ra1 {[%clk 0:00:04.1]} 54.
Nhg4 {[%clk 0:00:10.2]} 54... Rxa5 {[%clk 0:00:04.7]} 55. Rb3 {[%clk 0:00:10.5]}
55... Ra3 {[%clk 0:00:05]} 56. Rxa3 {[%clk 0:00:11]} 56... Bxa3 {[%clk
0:00:05.9]} 57. Ne3 {[%clk 0:00:10.6]} 57... a5 {[%clk 0:00:06.3]} 58. Nc4
{[%clk 0:00:11.2]} 58... Bb4 {[%clk 0:00:07]} 59. Nd5 {[%clk 0:00:11.7]} 59...
Kf8 {[%clk 0:00:04.8]} 60. g4 {[%clk 0:00:11.5]} 60... Nc5 {[%clk 0:00:04.7]}
61. Ndb6 {[%clk 0:00:11.6]} 61... Nb7 {[%clk 0:00:04.2]} 62. Ke4 {[%clk
0:00:11.4]} 62... Be7 {[%clk 0:00:03.5]} 63. Kd5 {[%clk 0:00:11.3]} 63... Bd8
{[%clk 0:00:03.1]} 64. Na4 {[%clk 0:00:11]} 64... Be7 {[%clk 0:00:03]} 65. Kc6
{[%clk 0:00:10.9]} 65... Nd8+ {[%clk 0:00:03.3]} 66. Kd5 {[%clk 0:00:11.5]}
66... Ne6 {[%clk 0:00:02.8]} 67. Ke4 {[%clk 0:00:12.1]} 67... Nc5+ {[%clk
0:00:02.6]} 68. Nxc5 {[%clk 0:00:11.7]} 68... Bxc5 {[%clk 0:00:03.5]} 69. Nxa5
{[%clk 0:00:12.6]} 69... Kg7 {[%clk 0:00:03.7]} 70. Nb3 {[%clk 0:00:12.5]} 70...
Bb4 {[%clk 0:00:04]} 71. Nd4 {[%clk 0:00:12.8]} 71... Kf8 {[%clk 0:00:04.3]} 72.
Nc6 {[%clk 0:00:13.3]} 72... Bc5 {[%clk 0:00:04.3]} 73. Kd5 {[%clk 0:00:13.5]}
73... Be3 {[%clk 0:00:04.7]} 74. f5 {[%clk 0:00:14.1]} 74... gxf5 {[%clk
0:00:05.6]} 75. gxf5 {[%clk 0:00:15]} 75... Bf4 {[%clk 0:00:05.8]} 76. Na5
{[%clk 0:00:15.4]} 76... Bh2 {[%clk 0:00:05.9]} 77. Nb7 {[%clk 0:00:16]} 77...
Ke7 {[%clk 0:00:06]} 78. Nd6 {[%clk 0:00:16.3]} 78... Bg3 {[%clk 0:00:05.9]} 79.
Ne4 {[%clk 0:00:15.4]} 79... Bh2 {[%clk 0:00:05.9]} 80. Ng5 {[%clk 0:00:14.8]}
80... Bxe5 {[%clk 0:00:03.7]} 81. Kxe5 {[%clk 0:00:12.4]} 81... f6+ {[%clk
0:00:04.2]} 82. Kf4 {[%clk 0:00:09.9]} 82... fxg5+ {[%clk 0:00:05]} 83. Kxg5
{[%clk 0:00:10.8]} 83... Kf7 {[%clk 0:00:05.9]} 84. f6 {[%clk 0:00:10.8]} 84...
Kf8 {[%clk 0:00:05.9]} 85. Kg6 {[%clk 0:00:11.6]} 85... Kg8 {[%clk 0:00:06.6]}
86. f7+ {[%clk 0:00:12.1]} 86... Kf8 {[%clk 0:00:07.3]} 87. Kf6 {[%clk 0:00:13]}
1/2-1/2